fUST/lending_fUST_20250618
["ID","MTS","AMOUNT","RATE_DAILY","PERIOD"]
[366417694,1750240246290,-636.67,0.00022027,6]
[366417695,1750240246300,-460.0,0.00022027,6]
[366417696,1750240246311,-460.0,0.00022027,6]
[366417697,1750240246320,-383.76813692,0.00022027,6]
[366417698,1750240246329,-727.72186286,0.00022064,2]
[366417699,1750240246339,-206.67989175,0.00022067,6]
[366417700,1750240246348,-460.0,0.00022136,6]
[366417701,1750240246358,-460.0,0.00022136,6]
[366417702,1750240246367,-460.0,0.00022136,6]
[366417703,1750240246376,-460.0,0.00022136,6]
[366417704,1750240246386,-460.0,0.00022136,6]
[366417705,1750240246395,-460.0,0.00022136,6]
[366417706,1750240246405,-460.0,0.00022136,6]
[366417707,1750240246414,-460.0,0.00022136,6]
[366417708,1750240246423,-460.0,0.00022136,6]
[366417709,1750240246432,-636.67,0.00022136,6]
[366417710,1750240246442,-460.0,0.00022136,6]
[366417711,1750240246451,-460.0,0.00022136,6]
[366417712,1750240246461,-500.0,0.00022233,6]
[366417713,1750240246471,-206.67989175,0.00022233,6]
[366417714,1750240246480,-460.0,0.00022246,6]
[366417715,1750240246490,-460.0,0.00022246,6]
[366417716,1750240246500,-460.0,0.00022246,6]
[366417717,1750240246510,-460.0,0.00022246,6]
[366417718,1750240246519,-460.0,0.00022246,6]
[366417719,1750240246529,-351.37,0.00022246,6]
[366417720,1750240246539,-460.0,0.00022246,6]
[366417721,1750240246548,-460.0,0.00022246,6]
[366417722,1750240246558,-460.0,0.00022246,6]
[366417723,1750240246567,-636.67,0.00022246,6]
[366417724,1750240246576,-460.0,0.00022246,6]
[366417725,1750240246587,-460.0,0.00022246,6]
[366417726,1750240246598,-832.93,0.00022346,3]
[366417727,1750240246608,-460.0,0.00022356,6]
[366417728,1750240246617,-460.0,0.00022356,6]
[366417729,1750240246627,-460.0,0.00022356,6]
[366417730,1750240246636,-460.0,0.00022356,6]
[366417731,1750240246645,-186.56,0.00022356,6]
[366417732,1750240246654,-460.0,0.00022356,6]
[366417733,1750240246663,-460.0,0.00022356,6]
[366417734,1750240246672,-460.0,0.00022356,6]
[366417735,1750240246682,-636.67,0.00022356,6]
[366417736,1750240246691,-460.0,0.00022356,6]
[366417737,1750240246700,-460.0,0.00022356,6]
[366417738,1750240246710,-206.67989175,0.000224,7]
[366417739,1750240246719,-176.0,0.00022417,2]
[366417740,1750240246730,-266.2588233,0.00022435,2]
[366417741,1750240246739,-434.00490752,0.00022464,6]
[366417742,1750240246749,-460.0,0.00022465,6]
[366417743,1750240246758,-460.0,0.00022465,6]
[366417744,1750240246767,-460.0,0.00022465,6]
[366417745,1750240246776,-460.0,0.00022465,6]
[366417746,1750240246786,-460.0,0.00022465,6]
[366417747,1750240246795,-460.0,0.00022465,6]
[366417748,1750240246804,-460.0,0.00022465,6]
[366417749,1750240246814,-636.67,0.00022465,6]
[366417750,1750240246823,-460.0,0.00022465,6]
[366417751,1750240246832,-460.0,0.00022465,6]
[366417752,1750240246842,-427.88079368,0.00022489,2]
[366417753,1750240246851,-160.0,0.00022499,2]
[366417754,1750240246860,-206.67989175,0.00022567,7]
[366417755,1750240246870,-500.0,0.00022574,6]
[366417756,1750240246879,-460.0,0.00022575,6]
[366417757,1750240246888,-460.0,0.00022575,6]
[366417758,1750240246898,-460.0,0.00022575,6]
[366417759,1750240246907,-460.0,0.00022575,6]
[366417760,1750240246916,-460.0,0.00022575,6]
[366417761,1750240246925,-460.0,0.00022575,6]
[366417762,1750240246934,-460.0,0.00022575,6]
[366417763,1750240246943,-636.67,0.00022575,6]
[366417764,1750240246953,-460.0,0.00022575,6]
[366417765,1750240246962,-460.0,0.00022575,6]
[366417766,1750240246972,-500.0,0.00022631,2]
[366417767,1750240246981,-460.0,0.00022684,6]
[366417768,1750240246991,-460.0,0.00022684,6]
[366417769,1750240247000,-460.0,0.00022684,6]
[366417770,1750240247010,-461.11,0.00022684,6]
[366417771,1750240247019,-460.0,0.00022684,6]
[366417772,1750240247030,-460.0,0.00022684,6]
[366417773,1750240247039,-460.0,0.00022684,6]
[366417774,1750240247049,-636.67,0.00022684,6]
[366417775,1750240247059,-460.0,0.00022684,6]
[366417776,1750240247068,-460.0,0.00022684,6]
[366417777,1750240247078,-206.67989175,0.00022733,7]
[366417778,1750240247087,-528.0,0.00022785,2]
[366417779,1750240247097,-460.0,0.00022794,6]
[366417780,1750240247107,-500.76,0.00022794,6]
[366417781,1750240247116,-460.0,0.00022794,6]
[366417782,1750240247126,-460.0,0.00022794,6]
[366417783,1750240247135,-264.72,0.00022794,6]
[366417784,1750240247144,-460.0,0.00022794,6]
[366417785,1750240247154,-636.67,0.00022794,6]
[366417786,1750240247163,-460.0,0.00022794,6]
[366417787,1750240247172,-460.0,0.00022794,6]
[366417788,1750240247182,-427.88079369,0.00022823,2]
[366417789,1750240247191,-206.67989175,0.000229,8]
[366417790,1750240247200,-460.0,0.00022904,6]
[366417791,1750240247210,-460.0,0.00022904,6]
[366417792,1750240247219,-460.0,0.00022904,6]
[366417793,1750240247229,-460.0,0.00022904,6]
[366417794,1750240247238,-636.67,0.00022904,6]
[366417795,1750240247248,-460.0,0.00022904,6]
[366417796,1750240247258,-382.67318787,0.00022904,6]
[366417797,1750240247267,-460.0,0.00023013,6]
[366417798,1750240247276,-460.0,0.00023013,6]
[366417799,1750240247287,-460.0,0.00023013,6]
[366417800,1750240247296,-460.0,0.00023013,6]
[366417801,1750240247306,-636.67,0.00023013,6]
[366417802,1750240247315,-460.0,0.00023013,6]
[366417803,1750240247323,-215.0738,0.00023032,2]
[366417804,1750240247333,-206.67989175,0.00023067,8]
[366417805,1750240247343,-176.0,0.00023083,2]
[366417806,1750240247352,-228.67133798,0.00023122,2]
[366417807,1750240247362,-500.0,0.00023122,6]
[366417808,1750240247371,-460.0,0.00023123,6]
[366417809,1750240247381,-460.0,0.00023123,6]
[366417810,1750240247390,-590.46,0.00023123,6]
[366417811,1750240247399,-460.0,0.00023123,6]
[366417812,1750240247408,-636.67,0.00023123,6]
[366417813,1750240247418,-460.0,0.00023123,6]
[366417814,1750240247428,-359.63638224,0.00023157,2]
[366417815,1750240247437,-500.0,0.00023174,2]
[366417816,1750240247447,-200.34040903,0.00023179,2]
[366417817,1750240247456,-9803.35143312,0.0002321,2]
[366417818,1750240247465,-17551.22359271,0.00023232,2]
[366417819,1750240247544,-4888.46292086,0.00023232,2]
[366417820,1750240340048,260.2087515,0.00017854,2]
[366417821,1750240369105,319.926481,0.00017854,2]
[366417822,1750240437664,10116.65551496,0.00017854,2]
[366417823,1750240437691,14783.34448504,0.00017854,2]
[366417827,1750240913702,565.0283945,0.00017854,2]
[366417828,1750240936266,163.005074,0.00013699,2]
[366417831,1750241153540,1000.0,0.00023,30]
[366417832,1750241170662,1000.0,0.00023,30]
[366417833,1750241224092,500.0,0.00023,30]
[366417834,1750241225378,-177.5058822,0.000189,2]
[366417835,1750241227398,-156.4667223,0.00019643,2]
[366417836,1750241232778,1000.0,0.00024657,120]
[366417837,1750241244423,-17.50668635,0.00019643,2]
[366417838,1750241244447,-147.28737522,0.00019768,2]
[366417844,1750241355432,-164.79406157,0.00019841,2]
[366417847,1750241371198,-288.81150018,0.00019851,2]
[366417868,1750241432565,-317.91849982,0.00019851,2]
[366417869,1750241432575,-166.6284359,0.00019968,2]
[366417870,1750241432585,-187.961866,0.00020113,2]
[366417872,1750241432595,-216.95352388,0.00020168,2]
[366417874,1750241432605,-300.0,0.00020213,2]
[366417875,1750241432614,-300.0,0.00020213,2]
[366417876,1750241432624,-1200.0,0.00020213,2]
[366417877,1750241432633,-6809.8457146,0.00020214,2]
[366417892,1750241438441,-728.1996,0.00020214,2]
[366417895,1750241438454,-545.89180486,0.00020214,2]
[366417896,1750241438467,-9533.66767614,0.00020214,2]
[366417897,1750241438478,-187.96186599,0.00020289,2]
[366417898,1750241438488,-10000.0,0.00020389,2]
[366417899,1750241438498,-223.0453163,0.00020438,2]
[366417900,1750241438508,-960.2898861,0.00020595,2]
[366417901,1750241438517,-1206.9002304,0.00020892,2]
[366417902,1750241438527,-150.0,0.000209,2]
[366417903,1750241438536,-1000.0,0.00021524,2]
[366417904,1750241438546,-1213.46,0.00021655,2]
[366417905,1750241438555,-319.03115329,0.00021734,2]
[366417906,1750241438565,-168.0,0.00021794,2]
[366417907,1750241438576,-545.79139718,0.0002181,2]
[366417908,1750241438585,-184.084,0.000219,2]
[366417909,1750241438595,-200.10867082,0.000219,6]
[366417910,1750241438605,-500.0,0.00021908,2]
[366417911,1750241438614,-500.0,0.00021908,2]
[366417912,1750241438623,-500.0,0.00021908,2]
[366417914,1750241438633,-1074.8995386,0.00021908,2]
[366417915,1750241438643,-500.0,0.00021908,2]
[366417916,1750241438652,-500.0,0.00021908,2]
[366417917,1750241438662,-500.0,0.00021908,2]
[366417918,1750241438672,-1074.8995386,0.00021908,2]
[366417919,1750241438682,-500.0,0.00021908,2]
[366417920,1750241438692,-338.15014149,0.00021908,2]
[366417921,1750241438701,-500.0,0.00021908,2]
[366417922,1750241438711,-1074.8995386,0.00021908,2]
[366417923,1750241438721,-315.94713993,0.00021908,2]
[366417924,1750241438730,-500.0,0.00021908,2]
[366417925,1750241438740,-500.0,0.00021908,2]
[366417926,1750241438750,-500.0,0.00021908,2]
[366417927,1750241438759,-1074.8995386,0.00021908,2]
[366417928,1750241438768,-500.0,0.00021908,2]
[366417929,1750241438778,-500.0,0.00021908,2]
[366417930,1750241438787,-500.0,0.00021908,2]
[366417931,1750241438797,-500.0,0.00021908,2]
[366417932,1750241438807,-1074.8995386,0.00021908,2]
[366417933,1750241438816,-500.0,0.00021908,2]
[366417934,1750241438827,-500.0,0.00021908,2]
[366417935,1750241438836,-500.0,0.00021908,2]
[366417936,1750241438845,-1074.8995386,0.00021908,2]
[366417937,1750241438854,-500.0,0.00021908,2]
[366417938,1750241438864,-500.0,0.00021908,2]
[366417939,1750241438873,-500.0,0.00021908,2]
[366417940,1750241438882,-1074.8995386,0.00021908,2]
[366417941,1750241438891,-500.0,0.00021908,2]
[366417942,1750241438901,-500.0,0.00021908,2]
[366417943,1750241438910,-1074.8995386,0.00021908,2]
[366417944,1750241438919,-500.0,0.00021908,2]
[366417945,1750241438929,-500.0,0.00021908,2]
[366417946,1750241438939,-1074.8995386,0.00021908,2]
[366417947,1750241438948,-500.0,0.00021908,2]
[366417948,1750241438957,-800.29143045,0.00021908,2]
[366417949,1750241438970,-274.60810815,0.00021908,2]
[366417950,1750241438979,-500.0,0.00021908,2]
[366417951,1750241438989,-370.54869659,0.00021908,2]
[366417952,1750241438999,-1074.8995386,0.00021908,2]
[366417953,1750241439010,-500.0,0.00021908,2]
[366417954,1750241439019,-500.0,0.00021908,2]
[366417955,1750241439029,-500.0,0.00021908,2]
[366417956,1750241439039,-67.71230213,0.00021908,2]
[366417981,1750241440962,-1007.18723647,0.00021908,2]
[366417982,1750241440972,-500.0,0.00021908,2]
[366417983,1750241440982,-1074.8995386,0.00021908,2]
[366417984,1750241440992,-500.0,0.00021908,2]
[366417985,1750241441002,-610.92118766,0.00021908,2]
[366417986,1750241441121,-463.97835094,0.00021908,2]
[366417987,1750241441130,-500.0,0.00021908,2]
[366417988,1750241441140,-584.77957175,0.00021908,2]
[366418022,1750241443659,-279.39360101,0.00021908,2]
[366418025,1750241443676,-210.72636584,0.00021908,2]
[366418027,1750241443686,-500.0,0.00021908,2]
[366418029,1750241443696,-500.0,0.00021908,2]
[366418030,1750241443706,-219.43963437,0.00021908,2]
[366418033,1750241443716,-1074.8995386,0.00021908,2]
[366418035,1750241443726,-1074.8995386,0.00021908,2]
[366418037,1750241443735,-1074.8995386,0.00021908,2]
[366418039,1750241443745,-1074.8995386,0.00021908,2]
[366418041,1750241443755,-500.0,0.00021908,2]
[366418043,1750241443765,-1074.8995386,0.00021908,2]
[366418045,1750241443775,-500.0,0.00021908,2]
[366418048,1750241443784,-500.0,0.00021908,2]
[366418049,1750241443794,-1074.8995386,0.00021908,2]
[366418051,1750241443803,-500.0,0.00021908,2]
[366418053,1750241443812,-500.0,0.00021908,2]
[366418055,1750241443822,-500.0,0.00021908,2]
[366418057,1750241443831,-500.0,0.00021908,2]
[366418058,1750241443841,-1074.8995386,0.00021908,2]
[366418060,1750241443851,-500.0,0.00021908,2]
[366418061,1750241443861,-1074.8995386,0.00021908,2]
[366418063,1750241443870,-500.0,0.00021908,2]
[366418065,1750241443880,-1074.8995386,0.00021908,2]
[366418067,1750241443889,-500.0,0.00021908,2]
[366418069,1750241443899,-1074.8995386,0.00021908,2]
[366418071,1750241443908,-1074.8995386,0.00021908,2]
[366418073,1750241443918,-1074.8995386,0.00021908,2]
[366418075,1750241443929,-1074.8995386,0.00021908,2]
[366418078,1750241443939,-1074.8995386,0.00021908,2]
[366418079,1750241443948,-1074.8995386,0.00021908,2]
[366418081,1750241443958,-1074.8995386,0.00021908,2]
[366418083,1750241443967,-1074.8995386,0.00021908,2]
[366418085,1750241443979,-1074.8995386,0.00021908,2]
[366418087,1750241443988,-1074.8995386,0.00021908,2]
[366418089,1750241443998,-1074.8995386,0.00021908,2]
[366418091,1750241444008,-1074.8995386,0.00021908,2]
[366418093,1750241444017,-1074.8995386,0.00021908,2]
[366418095,1750241444027,-1074.8995386,0.00021908,2]
[366418097,1750241444037,-1074.8995386,0.00021908,2]
[366418099,1750241444046,-1074.8995386,0.00021908,2]
[366418101,1750241444056,-1074.8995386,0.00021908,2]
[366418103,1750241444066,-1074.8995386,0.00021908,2]
[366418105,1750241444075,-1074.8995386,0.00021908,2]
[366418107,1750241444085,-1074.8995386,0.00021908,2]
[366418109,1750241444098,-1074.8995386,0.00021908,2]
[366418111,1750241444112,-1074.8995386,0.00021908,2]
[366418113,1750241444122,-1074.8995386,0.00021908,2]
[366418115,1750241444132,-1074.8995386,0.00021908,2]
[366418117,1750241444142,-1074.8995386,0.00021908,2]
[366418119,1750241444154,-1074.8995386,0.00021908,2]
[366418121,1750241444164,-1074.8995386,0.00021908,2]
[366418123,1750241444174,-1074.8995386,0.00021908,2]
[366418125,1750241444184,-1074.8995386,0.00021908,2]
[366418127,1750241444194,-1074.8995386,0.00021908,2]
[366418129,1750241444203,-1074.8995386,0.00021908,2]
[366418131,1750241444212,-1074.8995386,0.00021908,2]
[366418133,1750241444222,-740.36511188,0.00021908,2]
[366418136,1750241444239,-1465.0368767,0.00021908,2]
[366418138,1750241444249,-2205.40198858,0.00021908,2]
[366418140,1750241444259,-2205.40198858,0.00021908,2]
[366418142,1750241444269,-2205.40198858,0.00021908,2]
[366418144,1750241444279,-2205.40198858,0.00021908,2]
[366418146,1750241444289,-2205.40198858,0.00021908,2]
[366418148,1750241444299,-2205.40198858,0.00021908,2]
[366418150,1750241444308,-2205.40198858,0.00021908,2]
[366418152,1750241444318,-2205.40198858,0.00021908,2]
[366418154,1750241444328,-2205.40198858,0.00021908,2]
[366418155,1750241444338,-2205.40198858,0.00021908,2]
[366418157,1750241444349,-2205.40198858,0.00021908,2]
[366418159,1750241444359,-2205.40198858,0.00021908,2]
[366418161,1750241444368,-2205.40198858,0.00021908,2]
[366418163,1750241444377,-1255.71732649,0.00021908,2]
[366418166,1750241444389,-949.68466209,0.00021908,2]
[366418167,1750241444398,-2205.40198858,0.00021908,2]
[366418169,1750241444408,-1366.13381272,0.00021908,2]
[366418172,1750241444419,-839.26817586,0.00021908,2]
[366418174,1750241444428,-2205.40198858,0.00021908,2]
[366418176,1750241444438,-1230.47420668,0.00021908,2]
[366418377,1750241446598,-974.9277819,0.00021908,2]
[366418379,1750241446608,-2041.04655162,0.00021908,2]
[366419362,1750241527146,1500.0,0.00024,120]
[366419363,1750241560469,1245.0,0.000244,120]
[366419364,1750241574091,2000.0,0.000244,120]
[366419366,1750241904967,163.005074,0.00013699,2]
[366419367,1750241952155,-150.0,0.00019808,2]
[366419368,1750241952177,-171.0,0.00019841,2]
[366419369,1750242104386,190.91419344,0.00024658,120]
[366419384,1750242401095,-159.77149774,0.00019402,2]
[366419385,1750242466260,-210.0,0.00018157,2]
[366419386,1750242472807,4325.61697246,0.00018,2]
[366419387,1750242472832,20000.0,0.00018,2]
[366419388,1750242472858,899.29287125,0.00018,2]
[366419389,1750242473338,-153.17744513,0.00018157,2]
[366419390,1750242489190,153.17744513,0.000181,2]
[366419391,1750242518003,18947.52968362,0.00018,2]
[366419392,1750242518025,20000.0,0.00018,2]
[366419393,1750242518047,20000.0,0.00018,2]
[366419394,1750242518069,12734.05649122,0.00018,2]
[366419395,1750242519193,-226.35468164,0.00018157,2]
[366419396,1750242528944,-700.43964049,0.00018157,2]
[366419397,1750242528969,-442.56035951,0.00019418,2]
[366419424,1750242631804,-301.1648804,0.00019211,3]
[366419425,1750242631813,-226.35468164,0.00019224,2]
[366419426,1750242631823,-251.21768055,0.00019311,2]
[366419427,1750242631833,-622.61,0.00019411,2]
[366419428,1750242631844,-792.54574444,0.00019935,2]
[366419429,1750242631853,-239.64954421,0.0002,2]
[366419430,1750242631863,-430.0,0.0002,2]
[366419432,1750242631873,-999.0,0.00020028,2]
[366419434,1750242631882,-300.0,0.00020279,2]
[366419436,1750242631892,-300.0,0.00020279,2]
[366419438,1750242631902,-194.75291888,0.00020279,2]
[366419445,1750242631959,-1005.24708112,0.00020279,2]
[366419447,1750242631969,-24900.0,0.0002028,2]
[366419449,1750242631979,-632.84630924,0.0002039,2]
[366419451,1750242631988,-160.0,0.00020403,2]
[366419452,1750242631998,-465.0,0.00020407,2]
[366419453,1750242632007,-999.0,0.00020429,2]
[366419454,1750242632017,-685.29,0.00020481,3]
[366419455,1750242632153,-30994.15034752,0.00020491,2]
[366419456,1750242632165,-1029.68057,0.00020491,2]
[366419461,1750242637667,-5000.0,0.00020284,2]
[366419463,1750242637677,-200.48886445,0.00020489,2]
[366419466,1750242637687,-500.0,0.00020489,2]
[366419468,1750242637698,-500.0,0.00020489,2]
[366419469,1750242637707,-500.0,0.00020489,2]
[366419471,1750242637717,-500.0,0.00020489,2]
[366419473,1750242637726,-500.0,0.00020489,2]
[366419474,1750242637736,-500.0,0.00020489,2]
[366419475,1750242637745,-500.0,0.00020489,2]
[366419476,1750242637754,-611.89505197,0.00020489,2]
[366419477,1750242637764,-500.0,0.00020489,2]
[366419478,1750242637774,-500.0,0.00020489,2]
[366419479,1750242637783,-500.0,0.00020489,2]
[366419481,1750242637793,-500.0,0.00020489,2]
[366419483,1750242637803,-181.8462112,0.00020489,2]
[366419485,1750242637813,-500.0,0.00020489,2]
[366419487,1750242637822,-611.89505197,0.00020489,2]
[366419488,1750242637832,-500.0,0.00020489,2]
[366419489,1750242637842,-500.0,0.00020489,2]
[366419490,1750242637852,-500.0,0.00020489,2]
[366419491,1750242637861,-500.0,0.00020489,2]
[366419493,1750242637872,-563.20008636,0.00020489,2]
[366419495,1750242637882,-500.0,0.00020489,2]
[366419497,1750242637892,-500.0,0.00020489,2]
[366419499,1750242637902,-611.89505197,0.00020489,2]
[366419500,1750242637914,-500.0,0.00020489,2]
[366419501,1750242637924,-611.89505197,0.00020489,2]
[366419502,1750242637935,-500.0,0.00020489,2]
[366419504,1750242637944,-500.0,0.00020489,2]
[366419506,1750242637953,-526.52796077,0.00020489,2]
[366419508,1750242637963,-500.0,0.00020489,2]
[366419509,1750242637972,-500.0,0.00020489,2]
[366419512,1750242637981,-270.75101448,0.00020489,2]
[366419513,1750242637991,-500.0,0.00020489,2]
[366419514,1750242638001,-611.89505197,0.00020489,2]
[366419515,1750242638010,-500.0,0.00020489,2]
[366419516,1750242638019,-500.0,0.00020489,2]
[366419517,1750242638028,-500.0,0.00020489,2]
[366419518,1750242638038,-611.89505197,0.00020489,2]
[366419519,1750242638047,-500.0,0.00020489,2]
[366419520,1750242638058,-500.0,0.00020489,2]
[366419521,1750242638068,-611.89505197,0.00020489,2]
[366419522,1750242638077,-500.0,0.00020489,2]
[366419523,1750242638086,-500.0,0.00020489,2]
[366419524,1750242638095,-352.80972273,0.00020489,2]
[366419525,1750242638104,-611.89505197,0.00020489,2]
[366419526,1750242638114,-500.0,0.00020489,2]
[366419527,1750242638123,-500.0,0.00020489,2]
[366419528,1750242638132,-611.89505197,0.00020489,2]
[366419529,1750242638142,-500.0,0.00020489,2]
[366419530,1750242638151,-611.89505197,0.00020489,2]
[366419531,1750242638161,-500.0,0.00020489,2]
[366419532,1750242638170,-611.89505197,0.00020489,2]
[366419533,1750242638179,-552.85766844,0.00020489,2]
[366419534,1750242638189,-500.0,0.00020489,2]
[366419535,1750242638198,-611.89505197,0.00020489,2]
[366419537,1750242638207,-611.89505197,0.00020489,2]
[366419539,1750242638217,-500.0,0.00020489,2]
[366419541,1750242638226,-611.89505197,0.00020489,2]
[366419542,1750242638235,-611.89505197,0.00020489,2]
[366419545,1750242638244,-254.66591627,0.00020489,2]
[366419546,1750242638254,-611.89505197,0.00020489,2]
[366419547,1750242638264,-500.0,0.00020489,2]
[366419548,1750242638273,-611.89505197,0.00020489,2]
[366419549,1750242638283,-611.89505197,0.00020489,2]
[366419550,1750242638292,-611.89505197,0.00020489,2]
[366419551,1750242638302,-611.89505197,0.00020489,2]
[366419552,1750242638311,-611.89505197,0.00020489,2]
[366419553,1750242638321,-611.89505197,0.00020489,2]
[366419554,1750242638331,-611.89505197,0.00020489,2]
[366419555,1750242638340,-611.89505197,0.00020489,2]
[366419556,1750242638350,-611.89505197,0.00020489,2]
[366419557,1750242638359,-611.89505197,0.00020489,2]
[366419558,1750242638369,-611.89505197,0.00020489,2]
[366419559,1750242638379,-611.89505197,0.00020489,2]
[366419560,1750242638388,-611.89505197,0.00020489,2]
[366419561,1750242638398,-611.89505197,0.00020489,2]
[366419562,1750242638407,-611.89505197,0.00020489,2]
[366419563,1750242638417,-611.89505197,0.00020489,2]
[366419564,1750242638426,-500.0,0.00020489,2]
[366419565,1750242638436,-611.89505197,0.00020489,2]
[366419566,1750242638447,-611.89505197,0.00020489,2]
[366419567,1750242638456,-611.89505197,0.00020489,2]
[366419568,1750242638466,-611.89505197,0.00020489,2]
[366419569,1750242638475,-611.89505197,0.00020489,2]
[366419570,1750242638485,-611.89505197,0.00020489,2]
[366419571,1750242638494,-611.89505197,0.00020489,2]
[366419572,1750242638507,-611.89505197,0.00020489,2]
[366419573,1750242638516,-611.89505197,0.00020489,2]
[366419574,1750242638526,-611.89505197,0.00020489,2]
[366419575,1750242638535,-611.89505197,0.00020489,2]
[366419576,1750242638545,-611.89505197,0.00020489,2]
[366419577,1750242638555,-611.89505197,0.00020489,2]
[366419578,1750242638565,-611.89505197,0.00020489,2]
[366419579,1750242638575,-611.89505197,0.00020489,2]
[366419580,1750242638585,-611.89505197,0.00020489,2]
[366419581,1750242638595,-611.89505197,0.00020489,2]
[366419582,1750242638605,-611.89505197,0.00020489,2]
[366419583,1750242638614,-611.89505197,0.00020489,2]
[366419584,1750242638624,-611.89505197,0.00020489,2]
[366419585,1750242638634,-611.89505197,0.00020489,2]
[366419586,1750242638643,-611.89505197,0.00020489,2]
[366419587,1750242638654,-611.89505197,0.00020489,2]
[366419588,1750242638665,-611.89505197,0.00020489,2]
[366419589,1750242638674,-17976.16908248,0.00020491,2]
[366419590,1750242638684,-300.0,0.00020491,2]
[366419591,1750242638694,-151.853989,0.00020491,2]
[366419592,1750242638704,-10000.0,0.00020492,2]
[366419593,1750242638714,-399.5332634,0.00020492,2]
[366419594,1750242638724,-465.0,0.00020752,2]
[366419595,1750242638734,-160.0,0.00020835,2]
[366419596,1750242638743,-591.0,0.00020886,2]
[366419598,1750242638753,-213.901,0.00020905,2]
[366419599,1750242638763,-151.0,0.00020907,2]
[366419600,1750242638772,-151.0,0.00020907,2]
[366419601,1750242638782,-151.0,0.00020907,2]
[366419602,1750242638792,-151.0,0.00020907,2]
[366419603,1750242638802,-151.0,0.00020907,2]
[366419604,1750242638811,-159.96324,0.00020907,2]
[366419605,1750242638821,-504.85529597,0.00020973,2]
[366419606,1750242638830,-621.13,0.00021,2]
[366419607,1750242638840,-591.0,0.00021001,2]
[366419608,1750242638850,-632.8463092,0.0002106,2]
[366419609,1750242638859,-250.0,0.0002111,2]
[366419610,1750242638868,-1245.21,0.00021176,2]
[366419611,1750242638878,-591.0,0.00021343,2]
[366419612,1750242638887,-326.0,0.00021407,2]
[366419613,1750242638896,-591.0,0.00021619,2]
[366419614,1750242638907,-326.0,0.00021728,2]
[366419615,1750242638916,-632.8463092,0.00021731,2]
[366419616,1750242638925,-251.21768054,0.00021817,2]
[366419617,1750242638935,-184.08430943,0.00021904,2]
[366419618,1750242638944,-1714.46525498,0.00021908,2]
[366419619,1750242638954,-1000.0,0.00021909,2]
[366419620,1750242638963,-1000.0,0.00021909,2]
[366419621,1750242638972,-1142.57879756,0.00021909,2]
[366419622,1750242638982,-254.07511321,0.00021916,2]
[366419623,1750242639068,-157.2016772,0.00021916,2]
[366419624,1750242639078,-160.0,0.00021916,2]
[366419625,1750242639087,-151.000001,0.00021917,2]
[366419626,1750242639096,-151.0,0.00021917,2]
[366419627,1750242639106,-151.0,0.00021917,2]
[366419628,1750242639115,-151.0,0.00021917,2]
[366419629,1750242639124,-151.883194,0.00021917,2]
[366419630,1750242639134,-460.0,0.00021917,6]
[366419631,1750242639144,-441.12532295,0.00021917,6]
[366419632,1750242639153,-430.0,0.00021917,6]
[366419633,1750242639164,-430.0,0.00021917,6]
[366419634,1750242639174,-151.0,0.00021917,2]
[366419635,1750242639182,-430.0,0.00021917,6]
[366419636,1750242639191,-151.0,0.00021917,2]
[366419637,1750242639201,-590.81881533,0.00021917,6]
[366419638,1750242639210,-531.63613574,0.00021917,6]
[366419639,1750242639220,-440.0,0.00021917,6]
[366419640,1750242639230,-460.0,0.00021917,6]
[366419641,1750242639240,-460.0,0.00021917,6]
[366419642,1750242639249,-460.0,0.00021917,6]
[366419643,1750242639259,-460.0,0.00021917,6]
[366419644,1750242639268,-440.0,0.00021917,6]